fUSD/lending_fUSD_20240114
["ID","MTS","AMOUNT","RATE_DAILY","PERIOD"]
[311568850,1705252245556,-500.0,0.00030136,2]
[311568852,1705252245565,-502.8938435,0.00030136,2]
[311568854,1705252245574,-647.22,0.00030136,2]
[311568856,1705252245583,-500.0,0.00030136,2]
[311568858,1705252245592,-1382.37,0.00030136,2]
[311568860,1705252245600,-518.13731399,0.00030136,2]
[311568862,1705252245610,-500.0,0.00030136,2]
[311568864,1705252245619,-500.0,0.00030136,2]
[311568866,1705252245629,-500.0,0.00030136,9]
[311568868,1705252245639,-836.86,0.00030136,2]
[311568870,1705252245648,-865.23,0.00030136,2]
[311568872,1705252245658,-500.0,0.00030136,2]
[311568874,1705252245667,-500.0,0.00030136,2]
[311568876,1705252245676,-500.0,0.00030136,2]
[311568878,1705252245686,-500.0,0.00030136,2]
[311568880,1705252245695,-500.0,0.00030136,2]
[311568882,1705252245705,-500.0,0.00030136,2]
[311568884,1705252245714,-500.0,0.00030136,2]
[311568886,1705252245724,-500.0,0.00030136,2]
[311568888,1705252245733,-500.0,0.00030136,2]
[311568890,1705252245742,-500.0,0.00030136,2]
[311568892,1705252245752,-1002.82503379,0.00030136,2]
[311568894,1705252245761,-863.21,0.00030136,2]
[311568896,1705252245770,-1116.11,0.00030136,2]
[311568898,1705252245779,-500.0,0.00030136,2]
[311568900,1705252245789,-509.95811556,0.00030136,2]
[311568902,1705252245798,-1335.88,0.00030136,2]
[311568905,1705252245808,-500.0,0.00030136,2]
[311568907,1705252245817,-500.0,0.00030136,2]
[311568909,1705252245827,-1690.6,0.00030136,2]
[311568911,1705252245836,-1241.32,0.00030136,2]
[311568913,1705252245845,-529.95070044,0.00030136,2]
[311568915,1705252245854,-406.74933122,0.00030136,2]
[311568917,1705252245863,-1048.27,0.00030136,2]
[311568919,1705252245872,-2021.1,0.00030136,2]
[311568921,1705252245881,-1127.62,0.00030136,2]
[311568923,1705252245889,-500.0,0.00030136,2]
[311568925,1705252245898,-666.2,0.00030136,2]
[311568927,1705252245908,-835.47,0.00030136,2]
[311568929,1705252245916,-507.08372121,0.00030136,2]
[311568931,1705252245925,-500.0,0.00030136,2]
[311568933,1705252245934,-500.0,0.00030136,2]
[311568935,1705252245944,-500.0,0.00030136,2]
[311568937,1705252245953,-500.0,0.00030136,2]
[311568939,1705252245963,-500.0,0.00030136,2]
[311568941,1705252245973,-720.99,0.00030136,2]
[311568943,1705252245983,-1153.09,0.00030136,2]
[311568944,1705252245992,-804.23,0.00030136,2]
[311568945,1705252246002,-500.0,0.00030136,2]
[311568946,1705252246011,-1037.19,0.00030136,2]
[311568947,1705252246021,-1078.01,0.00030136,2]
[311568948,1705252246030,-1900.62,0.00030136,2]
[311568949,1705252246039,-500.0,0.00030136,2]
[311568950,1705252246048,-824.07,0.00030136,2]
[311568951,1705252246057,-2002.51,0.00030136,2]
[311568952,1705252246067,-678.83,0.00030136,2]
[311568953,1705252246076,-500.67660856,0.00030136,2]
[311568954,1705252246085,-500.0,0.00030136,2]
[311568955,1705252246094,-959.7,0.00030136,2]
[311568956,1705252246104,-500.0,0.00030136,2]
[311568957,1705252246113,-500.0,0.00030136,2]
[311568958,1705252246123,-500.0,0.00030136,2]
[311568959,1705252246133,-500.0,0.00030136,2]
[311568960,1705252246142,-650.03,0.00030136,2]
[311568962,1705252246152,-500.0,0.00030136,2]
[311568963,1705252246161,-500.0,0.00030136,2]
[311568964,1705252246171,-500.0,0.00030136,2]
[311568965,1705252246180,-500.0,0.00030136,2]
[311568966,1705252246189,-1629.93,0.00030136,2]
[311568967,1705252246199,-1885.14,0.00030136,2]
[311568968,1705252246208,-1040.72,0.00030136,2]
[311568969,1705252246217,-2041.9,0.00030136,2]
[311568970,1705252246228,-500.0,0.00030136,2]
[311568971,1705252246237,-500.0,0.00030136,2]
[311568972,1705252246247,-500.0,0.00030136,2]
[311568973,1705252246256,-500.0,0.00030136,2]
[311568974,1705252246266,-500.0,0.00030136,2]
[311568975,1705252246275,-500.0,0.00030136,2]
[311568976,1705252246285,-500.0,0.00030136,2]
[311568977,1705252246294,-500.0,0.00030136,2]
[311568979,1705252246303,-500.0,0.00030136,2]
[311568981,1705252246312,-500.0,0.00030136,2]
[311568984,1705252246321,-1619.28,0.00030136,2]
[311568986,1705252246331,-504.11421743,0.00030136,2]
[311568988,1705252246340,-500.0,0.00030136,2]
[311568990,1705252246350,-500.0,0.00030136,2]
[311568991,1705252246359,-500.0,0.00030136,2]
[311568992,1705252246369,-820.3,0.00030136,2]
[311568993,1705252246378,-2023.36,0.00030136,2]
[311568994,1705252246387,-1307.54,0.00030136,2]
[311568995,1705252246397,-500.0,0.00030136,2]
[311568996,1705252246406,-662.33,0.00030136,2]
[311568997,1705252246416,-500.0,0.00030136,2]
[311568998,1705252246426,-500.0,0.00030136,2]
[311569000,1705252246435,-500.0,0.00030136,2]
[311569002,1705252246444,-500.0,0.00030136,2]
[311569004,1705252246453,-500.0,0.00030136,2]
[311569006,1705252246462,-500.0,0.00030136,2]
[311569008,1705252246471,-1167.96,0.00030136,2]
[311569010,1705252246481,-1114.79,0.00030136,2]
[311569012,1705252246490,-498.16223284,0.00030136,2]
[311569014,1705252246499,-500.0,0.00030136,2]
[311569016,1705252246508,-795.11,0.00030136,2]
[311569018,1705252246518,-500.0,0.00030136,2]
[311569020,1705252246527,-500.0,0.00030136,2]
[311569022,1705252246536,-500.0,0.00030136,2]
[311569024,1705252246546,-500.0,0.00030136,2]
[311569026,1705252246555,-500.0,0.00030136,2]
[311569028,1705252246564,-500.0,0.00030136,2]
[311569030,1705252246575,-500.0,0.00030136,2]
[311569032,1705252246584,-500.0,0.00030136,2]
[311569034,1705252246593,-521.12085027,0.00030136,2]
[311569036,1705252246602,-500.0,0.00030136,2]
[311569038,1705252246612,-500.0,0.00030136,2]
[311569040,1705252246620,-508.28,0.00030136,2]
[311569041,1705252246630,-500.0,0.00030136,2]
[311569042,1705252246639,-500.0,0.00030136,2]
[311569043,1705252246648,-500.0,0.00030136,2]
[311569044,1705252246657,-500.0,0.00030136,2]
[311569045,1705252246666,-850.9,0.00030136,2]
[311569046,1705252246676,-823.12,0.00030136,2]
[311569047,1705252246685,-2060.81,0.00030136,2]
[311569048,1705252246694,-500.0,0.00030136,2]
[311569050,1705252246703,-1110.75,0.00030136,2]
[311569052,1705252246713,-500.0,0.00030136,2]
[311569054,1705252246725,-709.7,0.00030136,2]
[311569055,1705252246734,-500.0,0.00030136,2]
[311569056,1705252246743,-500.0,0.00030136,2]
[311569057,1705252246753,-733.79,0.00030136,2]
[311569058,1705252246763,-664.23,0.00030136,2]
[311569059,1705252246774,-503.27023122,0.00030136,2]
[311569060,1705252246784,-500.0,0.00030136,2]
[311569061,1705252246794,-1023.27,0.00030136,2]
[311569062,1705252246805,-500.0,0.00030136,2]
[311569063,1705252246815,-1000.0,0.00030136,2]
[311569064,1705252246824,-3195.49,0.00030136,2]
[311569066,1705252246834,-500.0,0.00030136,2]
[311569068,1705252246843,-500.0,0.00030136,2]
[311569070,1705252246852,-500.0,0.00030136,2]
[311569071,1705252246862,-500.0,0.00030136,2]
[311569073,1705252246871,-503.12573083,0.00030136,2]
[311569075,1705252246881,-500.0,0.00030136,2]
[311569077,1705252246890,-1885.84,0.00030136,2]
[311569079,1705252246901,-500.0,0.00030136,2]
[311569081,1705252246910,-500.0,0.00030136,2]
[311569083,1705252246920,-500.0,0.00030136,2]
[311569085,1705252246929,-500.0,0.00030136,2]
[311569088,1705252246939,-757.2,0.00030136,2]
[311569089,1705252246948,-500.0,0.00030136,2]
[311569091,1705252246958,-500.0,0.00030136,2]
[311569093,1705252246967,-500.0,0.00030136,2]
[311569095,1705252246976,-500.0,0.00030136,2]
[311569096,1705252246985,-500.0,0.00030136,2]
[311569097,1705252246994,-500.0,0.00030136,2]
[311569098,1705252247004,-500.0,0.00030136,2]
[311569099,1705252247013,-500.97333294,0.00030136,2]
[311569100,1705252247023,-500.0,0.00030136,2]
[311569101,1705252247032,-863.68,0.00030136,2]
[311569102,1705252247041,-500.0,0.00030136,2]
[311569103,1705252247050,-500.0,0.00030136,2]
[311569104,1705252247059,-500.0,0.00030136,2]
[311569105,1705252247069,-829.78,0.00030136,2]
[311569106,1705252247078,-500.0,0.00030136,2]
[311569107,1705252247088,-1020.24,0.00030136,2]
[311569108,1705252247097,-917.51,0.00030136,2]
[311569109,1705252247106,-500.0,0.00030136,2]
[311569110,1705252247116,-1281.11,0.00030136,2]
[311569111,1705252247125,-500.0,0.00030136,2]
[311569112,1705252247135,-592.17132943,0.00030136,2]
[311569113,1705252247145,-500.0,0.00030136,2]
[311569114,1705252247154,-600.41,0.00030136,2]
[311569115,1705252247163,-1227.04,0.00030136,2]
[311569116,1705252247173,-500.0,0.00030136,2]
[311569117,1705252247183,-500.0,0.00030136,2]
[311569118,1705252247193,-500.0,0.00030136,2]
[311569119,1705252247202,-500.0,0.00030136,2]
[311569120,1705252247212,-500.0,0.00030136,2]
[311569122,1705252247222,-1999.83,0.00030136,2]
[311569124,1705252247232,-500.0,0.00030136,2]
[311569126,1705252247242,-746.49,0.00030136,2]
[311569128,1705252247251,-1132.45,0.00030136,2]
[311569130,1705252247260,-500.0,0.00030136,2]
[311569132,1705252247269,-1460.45,0.00030136,2]
[311569134,1705252247278,-500.0,0.00030136,2]
[311569136,1705252247287,-500.0,0.00030136,2]
[311569138,1705252247296,-1320.94,0.00030136,2]
[311569140,1705252247306,-500.0,0.00030136,2]
[311569142,1705252247314,-722.68,0.00030136,2]
[311569144,1705252247323,-500.0,0.00030136,2]
[311569146,1705252247332,-1205.87,0.00030136,2]
[311569148,1705252247341,-500.0,0.00030136,2]
[311569150,1705252247350,-500.0,0.00030136,2]
[311569152,1705252247359,-500.0,0.00030136,2]
[311569154,1705252247368,-1773.28,0.00030136,2]
[311569156,1705252247377,-563.75,0.00030136,2]
[311569158,1705252247387,-500.0,0.00030136,2]
[311569160,1705252247396,-516.40085943,0.00030136,2]
[311569162,1705252247405,-810.08,0.00030136,2]
[311569164,1705252247413,-500.0,0.00030136,2]
[311569166,1705252247423,-895.09,0.00030136,2]
[311569168,1705252247432,-1207.56,0.00030136,2]
[311569170,1705252247441,-500.0,0.00030136,2]
[311569172,1705252247450,-475.53583053,0.00030136,2]
[311569174,1705252247459,-1058.04,0.00030136,2]
[311569176,1705252247469,-2542.75,0.00030136,2]
[311569178,1705252247480,-1000.0,0.00030136,2]
[311569180,1705252247490,-500.0,0.00030136,2]
[311569182,1705252247499,-500.0,0.00030136,2]
[311569184,1705252247509,-500.0,0.00030136,2]
[311569187,1705252247518,-504.62105244,0.00030136,2]
[311569189,1705252247528,-842.4,0.00030136,2]
[311569191,1705252247539,-500.0,0.00030136,2]
[311569192,1705252247548,-500.0,0.00030136,2]
[311569194,1705252247557,-500.0,0.00030136,2]
[311569196,1705252247567,-500.00000001,0.00030136,2]
[311569199,1705252247576,-500.0,0.00030136,2]
[311569200,1705252247585,-1525.23,0.00030136,2]
[311569202,1705252247594,-500.0,0.00030136,2]
[311569204,1705252247603,-500.0,0.00030136,2]
[311569206,1705252247613,-1991.27,0.00030136,2]
[311569208,1705252247622,-500.0,0.00030136,2]
[311569210,1705252247630,-500.0,0.00030136,2]
[311569212,1705252247639,-539.36359972,0.00030136,2]
[311569214,1705252247648,-500.0,0.00030136,2]
[311569215,1705252247657,-726.91,0.00030136,2]
[311569216,1705252247666,-500.0,0.00030136,2]
[311569217,1705252247675,-500.0,0.00030136,2]
[311569218,1705252247684,-500.0,0.00030136,2]
[311569219,1705252247693,-500.0,0.00030136,2]
[311569220,1705252247702,-500.0,0.00030136,2]
[311569222,1705252247711,-681.84,0.00030136,2]
[311569224,1705252247720,-1443.03,0.00030136,2]
[311569226,1705252247732,-587.43797805,0.00030136,2]
[311569228,1705252247741,-520.42391012,0.00030136,2]
[311569230,1705252247750,-500.0,0.00030136,2]
[311569232,1705252247759,-500.0,0.00030136,2]
[311569234,1705252247768,-1460.0,0.00030136,2]
[311569236,1705252247777,-500.0,0.00030136,2]
[311569238,1705252247786,-500.0,0.00030136,2]
[311569240,1705252247795,-500.0,0.00030136,2]
[311569242,1705252247804,-1061.14,0.00030136,2]
[311569244,1705252247814,-1092.47,0.00030136,2]
[311569246,1705252247823,-500.0,0.00030136,2]
[311569248,1705252247832,-1128.45,0.00030136,2]
[311569250,1705252247841,-502.79706462,0.00030136,2]
[311569252,1705252247849,-500.0,0.00030136,2]
[311569254,1705252247859,-500.0,0.00030136,2]
[311569256,1705252247868,-500.0,0.00030136,2]
[311569258,1705252247877,-930.07,0.00030136,2]
[311569260,1705252247886,-500.0,0.00030136,2]
[311569262,1705252247895,-500.0,0.00030136,2]
[311569264,1705252247904,-500.0,0.00030136,2]
[311569266,1705252247913,-500.0,0.00030136,2]
[311569268,1705252247923,-575.58,0.00030136,2]
[311569270,1705252247931,-804.22,0.00030136,2]
[311569272,1705252247940,-792.09,0.00030136,2]
[311569274,1705252247949,-500.0,0.00030136,2]
[311569276,1705252247958,-1171.52,0.00030136,2]
[311569278,1705252247967,-500.0,0.00030136,2]
[311569280,1705252247977,-500.0,0.00030136,2]
[311569282,1705252247986,-560.99,0.00030136,2]
[311569284,1705252247997,-503.61529355,0.00030136,2]
[311569286,1705252248006,-500.0,0.00030136,2]
[311569288,1705252248015,-500.0,0.00030136,2]
[311569290,1705252248024,-500.0,0.00030136,2]
[311569292,1705252248033,-1559.96,0.00030136,2]
[311569294,1705252248041,-500.0,0.00030136,2]
[311569295,1705252248051,-500.0,0.00030136,2]
[311569297,1705252248059,-500.0,0.00030136,2]
[311569300,1705252248069,-326.3294522,0.00030136,2]
[311569302,1705252248078,-1868.49,0.00030136,2]
[311569303,1705252248087,-500.0,0.00030136,2]
[311569306,1705252248096,-706.1,0.00030136,2]
[311569308,1705252248105,-500.0,0.00030136,2]
[311569309,1705252248114,-500.0,0.00030136,2]
[311569312,1705252248124,-538.67,0.00030136,2]
[311569314,1705252248133,-500.0,0.00030136,2]
[311569315,1705252248143,-500.0,0.00030136,2]
[311569317,1705252248152,-500.0,0.00030136,2]
[311569319,1705252248161,-500.0,0.00030136,2]
[311569321,1705252248170,-500.0,0.00030136,2]
[311569323,1705252248179,-500.0,0.00030136,2]
[311569325,1705252248189,-544.17160103,0.00030136,2]
[311569327,1705252248198,-500.0,0.00030136,2]
[311569329,1705252248207,-500.0,0.00030136,2]
[311569331,1705252248217,-954.86,0.00030136,2]
[311569333,1705252248227,-500.0,0.00030136,2]
[311569336,1705252248237,-175.89978836,0.00030136,2]
[311569337,1705252248246,-500.0,0.00030136,2]
[311569339,1705252248254,-500.0,0.00030136,2]
[311569340,1705252248264,-505.37464001,0.00030136,2]
[311569341,1705252248272,-918.75,0.00030136,2]
[311569342,1705252248281,-506.86147591,0.00030136,2]
[311569343,1705252248290,-500.0,0.00030136,2]
[311569344,1705252248299,-2188.29,0.00030136,2]
[311569345,1705252248308,-500.0,0.00030136,2]
[311569346,1705252248317,-500.0,0.00030136,2]
[311569347,1705252248327,-815.77,0.00030136,2]
[311569348,1705252248338,-500.0,0.00030136,2]
[311569349,1705252248348,-986.25,0.00030136,2]
[311569350,1705252248357,-500.0,0.00030136,2]
[311569351,1705252248366,-500.0,0.00030136,2]
[311569352,1705252248375,-1308.37,0.00030136,2]
[311569353,1705252248384,-591.33,0.00030136,2]
[311569354,1705252248393,-913.77,0.00030136,2]
[311569355,1705252248402,-500.0,0.00030136,2]
[311569356,1705252248411,-500.0,0.00030136,2]
[311569357,1705252248421,-500.0,0.00030136,2]
[311569358,1705252248430,-500.0,0.00030136,2]
[311569359,1705252248439,-500.0,0.00030136,2]
[311569360,1705252248449,-500.0,0.00030136,2]
[311569361,1705252248458,-500.0,0.00030136,2]
[311569362,1705252248467,-500.0,0.00030136,2]
[311569363,1705252248477,-500.0,0.00030136,2]
[311569364,1705252248486,-1262.51,0.00030136,2]
[311569365,1705252248495,-500.0,0.00030136,2]
[311569366,1705252248504,-500.0,0.00030136,2]
[311569367,1705252248513,-500.0,0.00030136,2]
[311569368,1705252248522,-500.0,0.00030136,2]
[311569369,1705252248532,-500.0,0.00030136,2]
[311569370,1705252248541,-500.0,0.00030136,2]
[311569371,1705252248550,-1000.0,0.00030136,2]
[311569372,1705252248559,-500.0,0.00030136,2]
[311569373,1705252248568,-500.0,0.00030136,2]
[311569374,1705252248578,-1331.58,0.00030136,2]
[311569375,1705252248586,-1516.94,0.00030136,2]
[311569376,1705252248596,-562.07,0.00030136,2]
[311569377,1705252248605,-643.99,0.00030136,2]
[311569378,1705252248616,-809.43,0.00030136,2]
[311569379,1705252248626,-629.6,0.00030136,2]
[311569380,1705252248637,-500.0,0.00030136,2]
[311569381,1705252248646,-748.5,0.00030136,2]
[311569382,1705252248655,-1331.6,0.00030136,2]
[311569383,1705252248664,-1249.64,0.00030136,2]
[311569384,1705252248673,-500.0,0.00030136,2]
[311569385,1705252248682,-500.0,0.00030136,2]
[311569386,1705252248691,-500.0,0.00030136,2]
[311569387,1705252248701,-2934.31,0.00030136,2]
[311569388,1705252248710,-730.81,0.00030136,2]
[311569389,1705252248722,-1260.42,0.00030136,2]
[311569390,1705252248734,-2934.31,0.00030136,2]
[311569391,1705252248744,-2934.31,0.00030136,2]
[311569392,1705252248753,-2934.31,0.00030136,2]
[311569393,1705252248765,-2934.31,0.00030136,2]
[311569394,1705252248774,-500.0,0.00030136,2]
[311569395,1705252248783,-977.41,0.00030136,2]
[311569396,1705252248794,-500.0,0.00030136,2]
[311569397,1705252248806,-706.44,0.00030136,2]
[311569398,1705252248815,-704.42,0.00030136,2]
[311569399,1705252248824,-504.42715413,0.00030136,2]
[311569400,1705252248833,-505.54850312,0.00030136,2]
[311569401,1705252248842,-510.91315124,0.00030136,2]
[311569402,1705252248851,-500.0,0.00030136,2]
[311569403,1705252248860,-500.0,0.00030136,2]
[311569404,1705252248869,-835.81,0.00030136,2]
[311569405,1705252248878,-500.0,0.00030136,2]
[311569406,1705252248887,-1054.04,0.00030136,2]
[311569407,1705252248896,-505.53593431,0.00030136,2]
[311569408,1705252248906,-517.22924994,0.00030136,2]
[311569409,1705252248915,-500.0,0.00030136,2]
[311569410,1705252248924,-500.0,0.00030136,2]
[311569411,1705252249038,-500.0,0.00030136,2]
[311569412,1705252249058,-500.0,0.00030136,2]
[311569413,1705252249068,-500.0,0.00030136,2]
[311569414,1705252249077,-1099.5,0.00030136,2]
[311569415,1705252249086,-500.0,0.00030136,2]
[311569416,1705252249096,-255.57504048,0.00030136,2]
[311569417,1705252249106,-500.0,0.00030136,2]
[311569418,1705252249115,-500.0,0.00030136,2]
[311569419,1705252249125,-502.44841114,0.00030136,2]
[311569420,1705252249134,-500.0,0.00030136,2]
[311569421,1705252249144,-500.0,0.00030136,2]
[311569422,1705252249153,-500.0,0.00030136,2]
[311569423,1705252249163,-514.13,0.00030136,2]
[311569424,1705252249172,-743.27,0.00030136,2]
[311569425,1705252249181,-854.02,0.00030136,2]
[311569426,1705252249191,-820.16,0.00030136,2]
[311569427,1705252249200,-500.7,0.00030136,2]
[311569428,1705252249209,-1035.25,0.00030136,2]
[311569429,1705252249218,-500.0,0.00030136,2]
[311569430,1705252249228,-2187.41,0.00030136,2]
[311569431,1705252249238,-498.95757335,0.00030136,2]
[311569432,1705252249247,-504.33218798,0.00030136,2]
[311569433,1705252249256,-500.0,0.00030136,2]
[311569434,1705252249266,-500.0,0.00030136,2]
[311569435,1705252249276,-500.0,0.00030136,2]
[311569436,1705252249285,-746.89,0.00030136,2]
[311569437,1705252249294,-500.0,0.00030136,2]
[311569438,1705252249304,-500.0,0.00030136,2]
[311569439,1705252249313,-500.0,0.00030136,2]
[311569440,1705252249322,-500.0,0.00030136,2]
[311569441,1705252249331,-1874.06,0.00030136,2]
[311569442,1705252249341,-500.0,0.00030136,2]
[311569443,1705252249350,-500.0,0.00030136,2]
[311569444,1705252249360,-500.0,0.00030136,2]
[311569445,1705252249369,-500.0,0.00030136,2]
[311569446,1705252249379,-1599.15,0.00030136,2]
[311569447,1705252249388,-500.0,0.00030136,2]
[311569448,1705252249397,-500.0,0.00030136,2]
[311569449,1705252249407,-549.22048496,0.00030136,2]
[311569450,1705252249416,-2449.88,0.00030136,2]
[311569451,1705252249425,-500.0,0.00030136,2]
[311569452,1705252249434,-500.0,0.00030136,2]
[311569453,1705252249443,-816.92,0.00030136,2]
[311569454,1705252249453,-595.62250831,0.00030136,2]
[311569455,1705252249462,-500.0,0.00030136,2]
[311569456,1705252249470,-500.0,0.00030136,2]
[311569457,1705252249480,-241.27431443,0.00030136,2]
[311569458,1705252249489,-500.0,0.00030136,2]
[311569459,1705252249499,-607.62,0.00030136,2]
[311569460,1705252249508,-500.0,0.00030136,2]
[311569461,1705252249517,-500.0,0.00030136,2]
[311569462,1705252249526,-1717.02,0.00030136,2]
[311569463,1705252249536,-500.0,0.00030136,2]
[311569464,1705252249545,-500.0,0.00030136,2]
[311569465,1705252249554,-500.0,0.00030136,2]
[311569466,1705252249563,-500.0,0.00030136,2]
[311569467,1705252249572,-500.0,0.00030136,2]
[311569468,1705252249582,-500.0,0.00030136,2]
[311569469,1705252249591,-500.0,0.00030136,2]
[311569470,1705252249600,-585.51,0.00030136,2]
[311569471,1705252249610,-846.57,0.00030136,2]
[311569472,1705252249619,-1192.35,0.00030136,2]
[311569473,1705252249628,-500.0,0.00030136,2]
[311569474,1705252249637,-556.01,0.00030136,2]
[311569475,1705252249646,-500.0,0.00030136,2]
[311569476,1705252249656,-500.0,0.00030136,2]
[311569477,1705252249665,-311.49,0.00030136,2]
[311569478,1705252249674,-753.23,0.00030136,2]
[311569479,1705252249683,-1217.56,0.00030136,2]
[311569480,1705252249692,-564.68,0.00030136,2]
[311569481,1705252249702,-503.69907773,0.00030136,2]
[311569482,1705252249711,-2611.38,0.00030136,2]
[311569483,1705252249721,-1646.67,0.00030136,2]
[311569484,1705252249733,-500.0,0.00030136,2]
[311569485,1705252249742,-169.11173221,0.00030136,2]
[311569486,1705252249751,-500.0,0.00030136,2]
[311569487,1705252249760,-500.0,0.00030136,2]
[311569488,1705252249769,-500.0,0.00030136,2]
[311569489,1705252249778,-490.84006135,0.00030136,2]
[311569490,1705252249787,-602.69,0.00030136,2]
[311569491,1705252249796,-500.0,0.00030136,2]
[311569492,1705252249806,-2089.38,0.00030136,2]
[311569493,1705252249817,-501.76407912,0.00030136,2]
[311569494,1705252249827,-1435.9,0.00030136,2]
[311569495,1705252249837,-500.0,0.00030136,2]
[311569496,1705252249847,-500.0,0.00030136,2]
[311569497,1705252249856,-318.02816892,0.00030136,2]
[311569498,1705252249865,-652.19,0.00030136,2]
[311569499,1705252249874,-500.0,0.00030136,2]
[311569500,1705252249884,-500.0,0.00030136,2]
[311569501,1705252249894,-954.59,0.00030136,2]
[311569502,1705252249904,-500.0,0.00030136,2]
[311569503,1705252249914,-570.69214603,0.00030136,2]
[311569504,1705252249924,-1925.77,0.00030136,2]
[311569505,1705252249934,-500.0,0.00030136,2]
[311569506,1705252249943,-165.120342,0.00030136,2]
[311569507,1705252249953,-500.28902584,0.00030136,2]
[311569508,1705252249962,-500.0,0.00030136,2]
[311569509,1705252249971,-500.0,0.00030136,2]
[311569510,1705252249982,-552.02,0.00030136,2]
[311569511,1705252249991,-1686.3,0.00030136,2]
[311569512,1705252250001,-500.0,0.00030136,2]
[311569513,1705252250011,-531.8,0.00030136,2]
[311569514,1705252250020,-500.0,0.00030136,2]
[311569515,1705252250029,-500.0,0.00030136,2]
[311569516,1705252250038,-500.0,0.00030136,2]
[311569517,1705252250048,-500.0,0.00030136,2]
[311569518,1705252250057,-500.0,0.00030136,2]
[311569519,1705252250067,-1006.64,0.00030136,2]
[311569520,1705252250076,-500.0,0.00030136,2]
[311569521,1705252250085,-500.0,0.00030136,2]
[311569522,1705252250094,-500.0,0.00030136,2]
[311569523,1705252250104,-500.0,0.00030136,2]
[311569524,1705252250114,-500.0,0.00030136,2]
[311569525,1705252250124,-500.0,0.00030136,2]
[311569526,1705252250133,-500.0,0.00030136,2]
[311569527,1705252250143,-500.0,0.00030136,2]
[311569528,1705252250153,-500.0,0.00030136,2]
[311569529,1705252250162,-500.0,0.00030136,2]
[311569530,1705252250171,-309.00446711,0.00030136,2]
[311569531,1705252250181,-500.0,0.00030136,2]
[311569532,1705252250190,-500.0,0.00030136,2]
[311569533,1705252250199,-500.0,0.00030136,2]
[311569534,1705252250209,-500.0,0.00030136,2]
[311569535,1705252250219,-500.0,0.00030136,2]
[311569536,1705252250228,-500.0,0.00030136,2]
[311569537,1705252250238,-500.0,0.00030136,2]
[311569538,1705252250247,-500.0,0.00030136,2]
[311569539,1705252250257,-994.5,0.00030136,2]
[311569540,1705252250266,-4875.25,0.00030136,2]
[311569541,1705252250276,-632.51,0.00030136,2]
[311569542,1705252250286,-1458.22,0.00030136,2]
[311569543,1705252250296,-540.94,0.00030136,2]
[311569544,1705252250305,-500.0,0.00030136,2]
[311569545,1705252250315,-500.0,0.00030136,2]
[311569546,1705252250324,-500.0,0.00030136,2]
[311569547,1705252250333,-1282.02,0.00030136,2]
[311569548,1705252250343,-556.06,0.00030136,2]
[311569549,1705252250353,-500.0,0.00030136,2]